bitfinex-derivatives/quotes_ETHF0:USTF0_20250410
["timestamp","ask_amount","ask_price","bid_price","bid_amount"]
[1744291849139,1.8167,1591.4,1591.3,3.2078]
[1744291849340,1.7354,1591.5,1591.4,1.25748]
[1744291849642,3.4425,1591.5,1591.4,1.25748]
[1744291850847,3.4425,1591.5,1591.3,3.2078]
[1744291850848,3.1439,1591.3,1590.6,3.2078]
[1744291851042,1.25775,1591.1,1591.0,1.25777]
[1744291851242,1.7071,1591.2,1590.7,3.14509]
[1744291851540,8.059,1591.2,1590.8,1.25789]
[1744291851740,1.25782,1591.0,1590.9,1.25782]
[1744291852140,1.71654167,1591.2,1591.1,1.25772]
[1744291852348,1.25786,1591.0,1590.9,1.25785]
[1744291852647,1.25778,1591.1,1591.0,1.25778]
[1744291852847,2.97423167,1591.2,1591.1,1.25772]
[1744291853147,1.8152,1591.0,1590.7,3.14506]
[1744291853344,3.2078,1590.9,1590.8,1.25789]
[1744291853535,4.9985,1590.9,1590.8,1.25789]
[1744291854643,3.6059,1590.9,1590.8,1.25789]
[1744291854844,4.86377,1590.9,1590.8,1.25789]
[1744291855041,3.6059,1590.9,1590.8,1.25789]
[1744291855241,6.8137,1590.9,1590.8,1.25789]
[1744291855550,1.2578,1591.0,1590.9,1.25787]
[1744291855751,4.4656,1591.0,1590.9,1.25787]
[1744291856055,4.9533,1591.1,1590.8,3.14483]
[1744291856351,1.7455,1591.1,1591.0,1.2578]
[1744291856753,0.00944167,1591.2,1591.1,1.25772]
[1744291856948,1.75494167,1591.2,1591.1,1.25772]
[1744291857649,1.67e-06,1591.2,1591.1,6.25772]
[1744291858238,12.76967836,1591.8,1591.7,1.25724]
[1744291858442,9.56187836,1591.8,1591.7,1.25724]
[1744291858644,8.24238836,1591.8,1591.7,6.25724]
[1744291858843,8.24238836,1591.8,1591.7,9.46504]
[1744291859044,8.24238836,1591.8,1591.7,1.25724]
[1744291859350,6.73981836,1591.8,1591.7,15.22904]
[1744291859552,2.07876836,1591.8,1591.7,15.22904]
[1744291859745,9.62107546,1592.0,1591.9,1.25708]
[1744291859944,9.62107546,1592.0,1591.9,9.46488]
[1744291861144,9.62107546,1592.0,1591.9,1.25708]
[1744291861454,1.25706,1592.0,1591.8,1.25713]
[1744291861648,4.88525,1592.3,1591.7,1.7417]
[1744291861649,4.9511,1591.9,1591.7,1.7417]
[1744291861851,4.9511,1591.9,1591.7,1.25717]
[1744291862147,6.2082,1591.9,1591.7,1.25718]
[1744291862348,1.25724,1591.7,1591.6,1.26676167]
[1744291862549,6.20824,1591.9,1591.7,1.2572]
[1744291862746,1.7433,1591.9,1591.8,1.25716]
[1744291862948,1.7355,1592.2,1592.1,1.25693]
[1744291863151,3.2078,1592.6,1592.5,1.25661]
[1744291863351,3.5386,1592.9,1592.7,1.25643]
[1744291863654,1.25645,1592.7,1592.6,1.25646]
[1744291863956,4.46417,1592.8,1592.4,6.35893167]
[1744291864157,1.7232,1592.7,1592.6,1.25646]
[1744291864348,1.25661,1592.5,1592.4,0.00944167]
[1744291864656,4.46441,1592.5,1592.4,0.00944167]
[1744291865558,3.14233,1592.1,1591.5,3.2078]
[1744291865860,1.25744,1591.5,1591.1,3.14428]
[1744291866056,1.25721,1591.8,1591.2,5.0368]
[1744291866258,1.25697,1592.1,1591.9,1.25701]
[1744291866559,1.7232,1592.0,1591.9,1.25701]
[1744291866858,1.25708,1591.9,1591.8,0.00944167]
[1744291867160,3.14293,1591.8,1590.6,6.98187]
[1744291867356,3.2078,1591.1,1590.8,1.7074]
[1744291867555,3.2078,1590.9,1590.4,3.2078]
[1744291867751,3.2078,1591.1,1590.5,3.14544]
[1744291868059,3.2078,1591.1,1590.6,4.9152]
[1744291868259,1.68394167,1591.0,1590.7,1.7074]
[1744291868558,1.68394167,1591.0,1590.9,1.25787]
[1744291868753,1.68394167,1591.0,1590.7,1.7074]
[1744291868958,1.25791,1590.9,1590.7,2.96539]
[1744291869160,4.47507167,1591.0,1590.7,2.96539]
[1744291869363,0.00944167,1591.0,1590.9,1.25787]
[1744291869659,0.00944167,1591.0,1590.9,2.96527]
[1744291869858,0.00944167,1591.0,1590.9,7.96527]
[1744291870559,3.2078,1591.8,1591.2,3.14394]
[1744291870862,3.2078,1591.8,1590.9,12.99678]
[1744291870863,1.7242,1591.7,1591.6,1.25729]
[1744291871159,1.7242,1591.7,1591.1,8.9698]
[1744291871356,1.25736,1591.6,1591.4,1.25748]
[1744291871555,1.7242,1591.7,1591.4,1.25748]
[1744291871556,1.7242,1591.5,1591.4,1.25748]
[1744291871758,2.98163,1591.5,1591.3,0.00944167]
[1744291871963,1.26672167,1591.7,1591.5,1.25735]
[1744291872260,1.7242,1591.6,1591.4,1.8242]
[1744291872460,3.2078,1591.5,1591.3,0.00944167]
[1744291872758,1.7242,1591.4,1591.3,0.00944167]
[1744291872965,2.98168,1591.4,1591.3,0.00944167]
[1744291873161,1.7242,1591.4,1591.3,1.26700167]
[1744291873361,1.7242,1591.4,1591.1,4.96849]
[1744291873362,1.25775,1591.1,1590.9,3.0032]
[1744291873563,9.868,1591.4,1590.8,5.762]
[1744291873564,1.25787,1590.9,1590.8,5.762]
[1744291873857,1.25835,1590.3,1590.2,3.2078]
[1744291874057,1.25835,1590.3,1590.1,8.76289]
[1744291874261,3.2078,1590.3,1590.1,1.7454]
[1744291874461,1.6813,1590.2,1590.0,1.25858]
[1744291874763,1.25851,1590.1,1590.0,0.00944167]
[1744291875154,1.6813,1590.1,1590.0,1.25859]
[1744291875557,40.8,1590.3,1590.1,1.25846]
[1744291875754,42.4813,1590.3,1589.9,4.9532]
[1744291875956,1.25849,1590.2,1589.9,1.7454]
[1744291876158,45.6891,1590.3,1589.9,4.9532]
[1744291876357,1.25861,1590.0,1589.9,0.00944167]
[1744291876762,3.02921,1590.0,1589.9,0.00944167]
[1744291877067,1.7706,1590.0,1589.9,1.26811167]
[1744291877359,6.5784735,1590.1,1590.0,1.25859]
[1744291877559,6.5784735,1590.1,1590.0,1.7107]
[1744291877762,6.5784735,1590.1,1590.0,7.96929]
[1744291878058,6.5784735,1590.1,1590.0,1.7107]
[1744291878259,1.25859,1590.0,1589.9,0.00944167]
[1744291878460,1.25898,1589.5,1589.2,3.2078]
[1744291878655,1.7706,1589.4,1589.3,1.25912]
[1744291879357,1.7706,1589.4,1589.2,4.46696]
[1744291879674,1.25917,1589.3,1589.1,0.00944167]
[1744291879866,1.6981,1589.2,1589.1,1.26874167]
[1744291880160,2.95732,1589.2,1589.1,0.00944167]
[1744291880361,6.16512,1589.2,1589.1,0.00944167]
[1744291881067,1.6981,1589.2,1589.1,1.26874167]
[1744291881561,2.95732,1589.2,1589.1,0.00944167]
[1744291881760,3.14829,1589.1,1588.4,1.8188]
[1744291881962,3.2078,1588.8,1588.4,1.8188]
[1744291882165,3.03854,1588.7,1588.4,1.8188]
[1744291882360,3.2078,1588.6,1588.4,3.07862]
[1744291882564,1.25992,1588.4,1588.1,7.02205]
[1744291882766,1.7789,1588.3,1588.2,1.26001]
[1744291883063,1.7789,1588.3,1588.1,0.00944167]
[1744291883264,3.2078,1588.2,1587.7,3.2078]
[1744291883567,4.46807,1587.9,1587.6,1.26044]
[1744291883766,3.2078,1587.7,1587.5,5.764]
[1744291883962,3.03946,1587.6,1587.3,1.2607]
[1744291884158,3.2078,1587.4,1587.0,1.7409]
[1744291884472,1.26097,1587.0,1586.9,29.26900685]
[1744291885068,1.7789,1587.0,1586.9,29.26900685]
[1744291885258,3.03987,1587.0,1586.9,29.26900685]
[1744291885462,42.5789,1587.0,1586.9,29.26900685]
[1744291885663,1.26104,1586.9,1586.8,0.00629451]
[1744291885858,1.26119,1586.8,1586.4,3.2078]
[1744291886059,1.7631,1586.7,1586.4,0.5086]
[1744291886266,1.7631,1586.7,1584.9,44.97595711]
[1744291886267,1.26155,1586.3,1585.9,1.26178]
[1744291886466,3.2078,1586.0,1585.5,1.8025]
[1744291886666,1.7631,1585.9,1585.8,1.26192]
[1744291886863,4.92764,1586.6,1585.8,1.26192]
[1744291886864,4.9821,1586.6,1586.5,1.26136]
[1744291887067,4.9821,1586.6,1585.9,3.15461]
[1744291887068,3.2078,1586.9,1586.7,1.26118]
[1744291887268,0.00944167,1586.7,1586.2,5.768]
[1744291887476,40.8,1586.6,1586.5,1.26132]
[1744291887667,44.0078,1586.6,1586.2,5.768]
[1744291887869,44.0078,1586.6,1586.5,1.26136]
[1744291888075,45.7709,1586.6,1585.7,3.2078]
[1744291888273,45.7709,1586.6,1585.4,3.2078]
[1744291888274,3.2078,1585.8,1585.4,3.2078]
[1744291888675,1.7681,1585.7,1585.5,1.26208]
[1744291888976,3.2078,1585.6,1585.2,29.26900685]
[1744291889176,3.2078,1585.3,1585.2,29.26900685]
[1744291889372,4.9759,1585.5,1585.4,1.26224]
[1744291889675,1.26232,1585.3,1585.2,29.26900685]
[1744291889877,44.0078,1585.3,1585.2,29.26900685]
[1744291890172,44.0078,1585.3,1584.6,6.032]
[1744291890173,1.26246,1585.2,1584.6,6.032]
[1744291890372,3.2078,1584.7,1584.3,6.032]
[1744291890680,3.2078,1584.9,1584.3,6.032]
[1744291890974,3.2078,1584.4,1583.9,3.2078]
[1744291891275,3.2078,1584.1,1583.3,3.2078]
[1744291891475,3.2078,1583.8,1583.2,30.94470685]
[1744291891673,1.2637,1583.6,1583.2,30.53294685]
[1744291891877,1.2637,1583.6,1583.2,29.26900685]
[1744291891878,4.47171,1583.3,1583.2,29.26900685]
[1744291892277,9.47171,1583.3,1583.2,16.1540602]
[1744291892468,50.27171,1583.3,1583.2,8.0453602]
[1744291892779,44.0078,1583.3,1583.2,8.0453602]
[1744291892978,40.8,1583.3,1583.2,19.36135643]
[1744291893276,0.00947179,1583.7,1583.2,7.99169623]
[1744291893481,0.00947179,1583.7,1583.6,1.26367]
[1744291893979,3.21727179,1583.7,1583.6,7.57966623]
[1744291894177,0.00947179,1583.7,1583.6,7.57966623]
[1744291895476,3.2078,1584.3,1583.6,15.78746623]
[1744291895679,4.851,1584.6,1584.5,1.26295]
[1744291895873,8.06623515,1584.9,1584.5,1.26289]
[1744291896179,3.2078,1584.7,1584.6,1.26288]
[1744291896482,3.2078,1584.8,1584.7,1.2628]
[1744291896672,3.21727179,1584.8,1584.7,6.31599623]
[1744291896869,3.21727179,1584.8,1584.7,7.57879623]
[1744291897273,1.79e-06,1584.8,1584.7,15.78659623]
[1744291898378,1.79e-06,1584.8,1584.7,7.57879623]
[1744291898784,1.79e-06,1584.8,1584.7,12.57879623]
[1744291899076,1.79e-06,1584.8,1584.7,15.78659623]
[1744291899281,3.2078,1585.5,1585.3,1.26229]
[1744291899480,4.8595,1585.5,1584.9,12.9303]
[1744291899683,4.8595,1585.5,1585.0,8.08739444]
[1744291899983,4.8595,1585.5,1585.0,6.31599444]
[1744291899984,3.2078,1585.1,1585.0,6.31599444]
[1744291900278,1.26233,1585.3,1585.1,6.31599444]
[1744291900484,4.46982,1585.7,1585.4,1.26221]
[1744291900682,0.00947179,1585.4,1585.2,8.08269444]
[1744291900884,0.00947179,1585.4,1585.0,1.26253]
[1744291900885,4.47018,1585.3,1585.0,1.26253]
[1744291901079,0.00947179,1585.4,1585.3,1.26232]
[1744291901489,0.00947179,1585.4,1585.3,7.57831444]
[1744291901878,3.2078,1586.1,1585.5,3.15538]
[1744291902075,3.2078,1585.9,1585.7,1.26198]
[1744291902390,4.46952,1586.1,1585.8,1.26192]
[1744291902575,3.2078,1586.1,1585.6,3.1552]
[1744291902773,3.2078,1586.3,1585.8,3.15481]
[1744291902979,3.2078,1586.3,1585.9,3.0285]
[1744291903179,0.00947179,1586.2,1585.9,3.03796179]
[1744291903375,3.2078,1586.1,1585.9,1.77617179]
[1744291903580,1.26176,1586.0,1585.9,0.00947179]
[1744291903788,2.92106,1586.0,1585.9,0.00947179]
[1744291903974,7.92106,1586.0,1585.9,0.00947179]
[1744291904180,1.26218,1585.5,1585.3,1.26227]
[1744291904482,6.6593,1586.0,1585.3,6.31599444]
[1744291904483,3.2078,1585.7,1585.3,6.31599444]
[1744291904687,4.46966,1585.9,1585.7,1.26198]
[1744291904982,1.26214,1585.6,1585.4,9.21772444]
[1744291905184,3.2078,1585.7,1585.5,6.31599444]
[1744291905492,1.26216,1585.5,1585.4,7.95549444]
[1744291905685,4.4698,1585.7,1585.5,6.31599444]
[1744291905881,4.4698,1585.7,1585.4,1.6395]
[1744291905882,1.26208,1585.6,1585.4,1.6395]
[1744291906185,1.26224,1585.4,1585.3,0.00947179]
[1744291906594,6.26224,1585.4,1585.3,0.00947179]
[1744291906793,3.1562,1585.1,1584.0,6.36602]
[1744291907090,3.2078,1584.4,1583.9,1.26341]
[1744291907286,3.2078,1584.1,1584.0,7.97819444]
[1744291907481,4.47107,1584.1,1584.0,1.6622]
[1744291907785,3.15839,1584.0,1583.1,3.2078]
[1744291908087,1.26413,1583.1,1582.7,2.92653]
[1744291908284,1.26468,1582.4,1582.0,3.2078]
[1744291908479,3.2078,1582.8,1582.7,1.79e-06]
[1744291908685,3.16157,1582.5,1581.3,3.2078]
[1744291908882,3.2078,1581.7,1580.9,3.2078]
[1744291909081,7.31142245,1582.3,1580.3,6.837]
[1744291909082,3.2078,1581.0,1580.3,11.370267]
[1744291909283,3.2078,1578.9,1577.7,3.2078]
[1744291909580,3.2078,1578.9,1575.4,96.194]
[1744291909581,4.47775,1575.8,1574.4,1.27098]
[1744291909779,3.2078,1573.5,1572.9,56.34948376]
[1744291909985,3.2078,1573.0,1572.9,50.03348932]
[1744291910181,3.2078,1573.6,1572.9,50.0205302]
[1744291910494,1.6453,1575.7,1571.2,3.2078]
[1744291910495,3.2078,1572.7,1571.2,3.2078]
[1744291910680,3.2078,1571.0,1570.4,59.27442536]
[1744291910882,0.00953471,1573.4,1570.9,14.17133484]
[1744291910883,3.2078,1572.5,1570.9,14.17133484]
[1744291911091,3.2078,1571.9,1571.5,3.2078]
[1744291911287,4.71e-06,1571.9,1571.8,3.2078]
[1744291911493,3.2078,1573.1,1571.8,3.2078]
[1744291911785,0.47862008,1574.1,1573.1,9.61e-06]
[1744291911987,3.2078,1573.7,1572.4,0.636]
[1744291912191,3.2078,1573.6,1572.2,96.274]
[1744291912381,3.2078,1572.9,1571.7,3.2078]
[1744291912581,0.99417333,1574.0,1572.8,3.2078]
[1744291912892,0.99417333,1574.0,1572.3,11.50832852]
[1744291912893,3.2078,1571.2,1570.0,3.2078]
[1744291913095,0.01298961,1570.0,1568.0,1.706]
[1744291913291,3.2078,1569.7,1568.1,22.15126607]
[1744291913586,3.2078,1569.5,1567.4,0.6376]
[1744291913788,7.03848566,1569.6,1566.5,0.6384]
[1744291913789,3.2078,1568.6,1566.5,0.6384]
[1744291914090,5.35169309,1571.6,1567.5,0.82720188]
[1744291914091,3.2078,1568.9,1567.5,0.82720188]
[1744291914290,3.2078,1570.3,1567.5,3.2078]
[1744291914486,15.33308515,1571.5,1570.2,3.2078]
[1744291914784,12.09002631,1572.4,1571.0,3.2078]
[1744291915090,12.09002631,1572.4,1571.1,3.2078]
[1744291915091,24.20059787,1571.6,1571.1,3.2078]
[1744291915292,0.12720218,1572.3,1571.8,3.2078]
[1744291915491,3.2078,1573.7,1572.2,3.2078]
[1744291915691,3.2078,1573.7,1572.3,3.2078]
[1744291915894,183.38997277,1575.6,1572.3,5.7235382]
[1744291915895,3.2078,1574.1,1572.3,5.7235382]
[1744291916197,40.8,1574.0,1573.0,3.2078]
[1744291916386,3.2078,1572.4,1570.1,3.2078]
[1744291916692,3.2078,1570.4,1570.0,8.42182146]
[1744291916891,14.78384721,1572.0,1570.2,8.42182146]
[1744291917083,10.04320712,1570.3,1568.7,3.2078]
[1744291917283,10.04320712,1570.3,1566.8,3.1929]
[1744291917284,3.2078,1569.7,1568.6,0.6376]
[1744291917493,3.2078,1569.7,1568.7,1.7778]
[1744291917690,3.2078,1570.0,1569.7,6.3744]
[1744291917998,3.2078,1569.9,1569.8,1.27475]
[1744291918296,0.00956236,1570.0,1569.0,0.00956236]
[1744291918483,0.00956236,1570.0,1568.7,4.9856]
[1744291918688,2.36e-06,1570.0,1569.3,0.00956236]
[1744291918886,3.2078,1571.4,1569.4,96.629]
[1744291919087,3.2078,1571.1,1569.9,3.2078]
[1744291919396,3.2078,1571.9,1570.3,3.2078]
[1744291919589,3.2078,1571.9,1570.0,1.7633]
[1744291919590,3.2078,1571.7,1570.0,20.25088593]
[1744291919788,0.12724265,1571.8,1570.4,15.50206169]
[1744291920095,0.12724265,1571.8,1570.7,0.00956236]
[1744291920396,3.2078,1571.4,1570.7,0.00956236]
[1744291920694,3.2078,1571.7,1570.7,0.00956236]
[1744291920896,3.2078,1571.6,1570.7,0.00956236]
[1744291921097,3.2078,1572.4,1570.9,3.2078]
[1744291921294,0.12720218,1572.3,1571.0,3.2078]
[1744291921492,0.12720218,1572.3,1571.6,1.27325]
[1744291921793,0.12720218,1572.3,1572.1,1.27286]
[1744291921994,3.2078,1573.4,1571.7,17.59473064]
[1744291922299,40.8,1573.7,1571.7,17.59473064]
[1744291922300,0.00956236,1572.7,1572.2,15.13390028]
[1744291922500,2.36e-06,1572.7,1572.2,3.2078]
[1744291922696,3.2078,1574.0,1572.4,3.2078]
[1744291922999,3.2078,1573.6,1572.1,3.2078]
[1744291923192,3.2078,1572.8,1572.1,3.2078]
[1744291923394,3.2078,1573.2,1571.9,3.2078]
[1744291923596,3.2078,1572.4,1571.7,3.2078]
[1744291923808,3.2078,1572.4,1571.7,3.19481039]
[1744291924102,3.2078,1572.2,1571.3,3.2078]
[1744291924401,0.12720454,1572.4,1571.9,0.00956236]
[1744291924590,3.2078,1572.2,1571.9,0.00956236]
[1744291925195,0.00956236,1572.3,1571.9,0.00956236]
[1744291925394,0.00956236,1572.3,1571.9,5.00956236]
[1744291925594,1.7055,1573.1,1571.9,5.00956236]
[1744291925595,3.2078,1573.0,1572.2,3.2078]
[1744291925800,1.5892,1573.2,1572.3,3.18189]
[1744291926097,0.12720454,1574.7,1572.3,3.18189]
[1744291926098,3.2078,1573.5,1573.1,3.2078]
[1744291926302,3.2078,1574.6,1573.3,3.2078]
[1744291926490,3.33500454,1574.6,1574.0,1.27132]
[1744291926698,3.33500454,1574.6,1573.2,112.36501567]
[1744291926699,3.2078,1574.9,1574.5,1.27093]
[1744291926909,0.00586023,1574.5,1574.4,1.27106]
[1744291927102,0.00586023,1574.5,1574.1,105.31820864]
[1744291927407,0.00586023,1574.5,1574.2,3.2078]
[1744291927605,0.00586023,1574.5,1574.1,96.93053046]
[1744291927805,0.00586023,1574.5,1574.2,0.0985]
[1744291928005,100.09519,1576.2,1574.2,0.0985]
[1744291928006,3.2078,1575.3,1574.4,3.2078]
[1744291928201,3.2078,1575.2,1574.3,0.6352]
[1744291928403,3.2078,1575.3,1574.5,8.25392638]
[1744291928598,3.2078,1575.1,1574.5,8.25392638]
[1744291928802,3.2078,1575.3,1574.5,3.6497]
[1744291929102,3.2078,1575.2,1574.7,3.2078]
[1744291929302,1.26981,1576.0,1574.7,3.2078]
[1744291929303,3.2078,1575.5,1574.8,3.2078]
[1744291929503,3.2078,1575.9,1575.4,3.2078]
[1744291929803,3.2078,1575.8,1575.6,1.27005]
[1744291930005,1.26932,1576.6,1575.7,1.26995]
[1744291930306,3.2078,1575.8,1575.5,0.00953046]
[1744291930508,3.2078,1575.6,1575.5,0.00953046]
[1744291931002,3.33500454,1575.6,1575.5,0.00953046]
[1744291931207,3.2078,1575.4,1574.6,1.7001]
[1744291931404,3.2078,1575.1,1574.6,1.7001]
[1744291931592,3.33475994,1575.3,1574.6,4.9079]
[1744291931793,3.2078,1574.7,1574.5,0.4419]
[1744291932000,3.2078,1574.7,1574.2,98.6726]
[1744291932216,3.2078,1574.6,1574.2,98.6726]
[1744291932395,3.2078,1575.0,1574.2,106.8804]
[1744291932597,3.33475994,1575.3,1575.2,1.27041]
[1744291932804,3.2078,1576.2,1576.1,1.26969]
[1744291932998,3.2078,1576.2,1575.4,3.17563]
[1744291933210,3.2078,1576.0,1575.9,1.26985]
[1744291933601,3.2078,1576.5,1576.0,3.1744]
[1744291933805,3.2078,1576.1,1576.0,1.26977]
[1744291934112,1.26901,1577.0,1576.4,1.26944]
[1744291934305,3.2078,1576.5,1576.4,1.26944]
[1744291934501,44.0078,1576.5,1575.7,11.61524187]
[1744291934805,3.2078,1576.1,1575.9,1.26981]
[1744291935011,3.2078,1576.1,1576.0,1.26977]
[1744291935307,3.84800408,1576.1,1575.9,0.00953046]
[1744291935508,3.84800408,1576.1,1575.9,1.26978]
[1744291935709,3.2078,1576.2,1576.1,1.26969]
[1744291935910,7.05580408,1576.2,1575.7,0.4408]
[1744291936096,3.2078,1575.8,1575.7,1.71081]
[1744291936501,3.2078,1576.1,1575.7,0.4408]
[1744291936704,3.2078,1576.4,1576.0,1.26977]
[1744291936904,44.64800408,1576.5,1576.4,1.26944]
[1744291937209,3.2078,1576.9,1576.5,1.26933]
[1744291937506,3.21733046,1576.6,1576.4,1.26943]
[1744291937708,3.21733046,1576.6,1576.5,0.00953046]
[1744291937903,7.06533454,1576.6,1576.5,1.27889046]
[1744291938099,0.00953046,1576.6,1576.5,6.27889046]
[1744291938302,4.6e-07,1576.6,1576.5,9.48669046]
[1744291938509,4.6e-07,1576.6,1576.5,1.27889046]
[1744291938903,4.6e-07,1576.6,1576.5,6.27889046]
[1744291939918,3.2078,1577.1,1576.9,1.26904]
[1744291940112,3.2078,1577.1,1576.6,3.2078]
[1744291940319,42.06866,1577.4,1576.9,1.26898]
[1744291940615,7.05580408,1577.5,1577.2,1.26876]
[1744291940913,8.32439408,1577.5,1576.6,8.17154]
[1744291941115,8.32439408,1577.5,1576.6,4.96373]
[1744291941116,7.05580408,1577.5,1576.6,4.96373]
[1744291941415,1.26864,1577.4,1576.9,1.26899]
[1744291941712,3.2078,1577.1,1576.9,1.26902]
[1744291941907,3.2078,1577.1,1576.6,4.9984]
[1744291941908,3.2078,1577.1,1576.6,1.7906]
[1744291942109,3.2078,1576.8,1576.5,0.00953046]
[1744291942704,3.2078,1577.0,1576.5,8.18291046]
[1744291942908,1.6861,1577.4,1576.7,1.26916]
[1744291942909,5.53410408,1577.4,1576.7,1.26916]
[1744291943119,3.2078,1576.8,1576.6,1.7906]
[1744291943415,3.2078,1576.7,1576.5,0.00953046]
[1744291943614,3.2078,1576.7,1575.8,0.6344]
[1744291943805,3.2078,1575.9,1575.7,0.4408]
[1744291944112,8.2078,1575.9,1575.0,2.5396]
[1744291944414,3.2078,1575.8,1575.1,3.2078]
[1744291944708,3.2078,1575.4,1575.0,2.5396]
[1744291944909,3.2078,1575.4,1575.3,0.00953046]
[1744291945117,3.2078,1575.5,1575.3,0.00953046]
[1744291945309,1.27025,1575.4,1575.3,0.00953046]
[1744291945617,3.2078,1575.5,1575.3,0.00953046]
[1744291945814,5.87267362,1575.5,1575.3,0.00953046]
[1744291946210,3.2078,1575.5,1575.3,0.00953046]
[1744291946518,1.27025,1575.4,1575.3,0.00953046]
[1744291946720,9.55956,1575.3,1574.2,97.4292]
[1744291946916,3.2078,1574.6,1574.2,99.1413]
[1744291947114,3.2078,1574.4,1574.2,1.7121]
[1744291947413,3.1763,1575.1,1574.2,1.7121]
[1744291947414,3.2078,1574.7,1574.2,4.9199]
[1744291947612,3.2078,1574.3,1574.2,1.7121]
[1744291947911,3.2078,1575.2,1574.4,3.17758]
[1744291948108,3.2078,1575.2,1574.5,3.17745]
[1744291948414,3.2078,1575.2,1574.6,4.88928]
[1744291948610,4.478,1575.5,1575.1,1.27049]
[1744291948815,3.2078,1575.3,1575.1,1.7121]
[1744291949019,3.2078,1575.8,1575.3,1.27028]
[1744291949313,0.00953046,1575.5,1575.3,3.2078]
[1744291949609,3.2078,1576.1,1575.4,1.27025]
[1744291949815,3.2078,1576.3,1576.2,1.26961]
[1744291950004,3.2078,1576.3,1575.9,98.8127]
[1744291950203,3.2078,1576.3,1576.0,1.26971]
[1744291950418,3.2078,1576.1,1575.6,7.33864822]
[1744291950712,6.38211,1576.1,1575.4,2.6349]
[1744291950913,3.2078,1575.9,1575.7,0.00953046]
[1744291951114,1.26993,1575.8,1575.7,0.00953046]
[1744291951307,3.2078,1575.9,1575.7,0.00953046]
[1744291951515,1.26993,1575.8,1575.7,0.00953046]
[1744291951909,1.26993,1575.8,1575.7,4.6e-07]
[1744291951910,6.39520316,1575.8,1575.7,4.6e-07]
[1744291952110,1.2703,1575.4,1575.1,1.27049]
[1744291952308,1.27031,1575.4,1575.1,1.27046]
[1744291952514,3.2078,1575.4,1575.1,1.27049]
[1744291952815,3.2078,1575.4,1575.0,96.813]
[1744291952816,1.27049,1575.1,1575.0,96.813]
[1744291953206,4.47824,1575.2,1575.0,96.813]
[1744291953405,0.00953046,1575.2,1575.0,97.4482]
[1744291953616,3.2078,1575.1,1575.0,96.813]
[1744291953811,0.00953046,1575.2,1575.0,101.813]
[1744291954016,0.00953046,1575.2,1575.1,1.27049]
[1744291954412,3.2078,1575.7,1575.1,6.27049]
[1744291954612,3.2078,1575.9,1575.2,3.2078]
[1744291954809,3.2078,1576.0,1575.4,6.38343]
[1744291955012,3.2078,1576.2,1575.5,3.17543]
[1744291955213,4.47763,1576.0,1575.7,1.26997]
[1744291955420,4.47758,1576.0,1575.7,1.26995]
[1744291955616,1.27001,1575.7,1575.4,1.27023]
[1744291955822,3.2078,1575.8,1575.3,5.9342]
[1744291956020,0.00953046,1576.0,1575.4,3.18516046]
[1744291956319,3.2078,1576.5,1575.6,3.2078]
[1744291956508,1.26915,1576.8,1576.5,1.26931]
[1744291956709,3.2078,1576.7,1576.3,2.0912]
[1744291957016,3.2078,1576.4,1576.3,2.0912]
[1744291957417,3.2078,1576.4,1576.3,8.36072]
[1744291957613,1.26937,1576.5,1576.3,8.36072]
[1744291957810,3.2078,1576.8,1576.3,5.26497]
[1744291958019,3.2078,1576.8,1576.3,2.0912]
[1744291958219,3.2078,1576.8,1576.7,1.2692]
[1744291958522,3.2078,1577.0,1576.6,3.17322]
[1744291958711,3.2078,1576.8,1576.6,1.26923]
[1744291958914,3.2078,1576.8,1576.5,0.4326]
[1744291959218,4.47708,1576.6,1576.5,0.4326]
[1744291959517,3.3330727,1576.8,1576.5,0.4326]
[1744291959822,3.2078,1577.0,1576.5,11.8138]
[1744291960016,3.2078,1577.0,1576.8,1.26907]
[1744291960216,3.3330727,1577.0,1576.6,1.26922]
[1744291960522,3.3330727,1577.0,1576.5,2.5855]
[1744291960716,1.2692,1576.7,1576.5,3.85483]
[1744291960910,3.2078,1577.2,1576.6,3.2078]
[1744291961122,3.2078,1577.5,1577.4,1.2686]
[1744291961421,3.2078,1577.7,1577.2,5.3205]
[1744291961621,3.2078,1577.3,1577.2,1.2688]
[1744291961811,4.47655,1577.3,1577.1,98.04486]
[1744291962122,1.2688,1577.2,1577.1,96.78553046]
[1744291962324,4.6018527,1577.3,1577.1,96.78553046]
[1744291962517,3.3330727,1577.3,1577.1,0.00953046]
[1744291962717,1.26912,1576.8,1576.6,1.26925]
[1744291962914,3.2078,1576.9,1576.7,1.26915]
[1744291963115,3.2078,1576.9,1576.5,0.5296]
[1744291963320,4.47708,1576.6,1576.5,0.5296]
[1744291963723,1.26941,1576.5,1576.3,2.8373]
[1744291964020,4.47708,1576.6,1576.4,0.00953046]
[1744291964215,0.00953046,1576.6,1576.5,1.26936]
[1744291964414,3.2078,1577.5,1577.4,1.26864]
[1744291964723,3.2078,1577.7,1577.6,1.26848]
[1744291964927,3.2078,1577.9,1577.3,3.17179]
[1744291965120,3.53676291,1577.8,1577.6,1.26842]
[1744291965326,3.53676291,1577.8,1577.2,5.3162]
[1744291965327,44.0078,1577.8,1577.7,1.2684]
[1744291965524,3.2078,1578.2,1577.8,1.26829]
[1744291965821,4.47602,1578.0,1577.6,2.1084]
[1744291966022,4.47605,1577.9,1577.6,2.1084]
[1744291966225,4.47607,1577.9,1577.5,0.00953046]
[1744291966519,1.26845,1577.7,1577.5,0.00953046]
[1744291966723,1.47329,1577.6,1577.5,0.00953046]
[1744291966929,3.2078,1578.0,1577.6,8.24075558]
[1744291967229,4.47593,1578.1,1577.8,1.26832]
[1744291967423,4.47593,1578.1,1577.5,3.81523046]
[1744291967424,4.47606,1577.9,1577.6,1.26841]
[1744291967630,2.0714,1578.0,1577.6,3.2078]